[Event "*** SCC Grand Prix: Titled Tuesday Blitz"]
[Site "Chess.com"]
[Date "2020.10.13"]
[Round "5"]
[White "Margency"]
[Black "Shield12"]
[Result "1/2-1/2"]
[WhiteElo "2608"]
[BlackElo "2825"]
[TimeControl "180+1"]
[EndTime "10:56:11 PDT"]
[Termination "Game drawn by repetition"]

1. e4 {[%clk 0:03:00.9]} 1... c5 {[%clk 0:03:00.1]} 2. Nf3 {[%clk 0:03:00.8]}
2... Nc6 {[%clk 0:03:00.4]} 3. d4 {[%clk 0:03:01.4]} 3... cxd4 {[%clk
0:03:01.3]} 4. Nxd4 {[%clk 0:03:02.3]} 4... Nf6 {[%clk 0:03:01.9]} 5. Nc3 {[%clk
0:03:02.6]} 5... d6 {[%clk 0:03:02.5]} 6. Bg5 {[%clk 0:03:01.3]} 6... e6 {[%clk
0:03:02.7]} 7. Qd2 {[%clk 0:03:01.7]} 7... a6 {[%clk 0:03:03.1]} 8. O-O-O {[%clk
0:03:01.9]} 8... Bd7 {[%clk 0:03:03.4]} 9. f3 {[%clk 0:03:01.9]} 9... Nxd4
{[%clk 0:03:03.1]} 10. Qxd4 {[%clk 0:03:01.9]} 10... h6 {[%clk 0:03:03.7]} 11.
Be3 {[%clk 0:03:01.6]} 11... Bc6 {[%clk 0:03:04.1]} 12. Kb1 {[%clk 0:03:01.3]}
12... d5 {[%clk 0:03:04.1]} 13. e5 {[%clk 0:03:01]} 13... Nd7 {[%clk 0:03:03.9]}
14. f4 {[%clk 0:03:00.3]} 14... Bc5 {[%clk 0:03:04.4]} 15. Qd2 {[%clk
0:03:00.4]} 15... Bxe3 {[%clk 0:03:05.3]} 16. Qxe3 {[%clk 0:03:00.8]} 16... g5
{[%clk 0:03:06.2]} 17. f5 {[%clk 0:02:43.6]} 17... Qb6 {[%clk 0:03:05.6]} 18.
Qg3 {[%clk 0:02:36.9]} 18... O-O-O {[%clk 0:03:02.4]} 19. Bd3 {[%clk 0:02:19.8]}
19... Nc5 {[%clk 0:02:51.4]} 20. fxe6 {[%clk 0:02:07.7]} 20... fxe6 {[%clk
0:02:52.3]} 21. Rhf1 {[%clk 0:02:07.4]} 21... Qc7 {[%clk 0:02:46.5]} 22. Rf6
{[%clk 0:01:58.4]} 22... Rdf8 {[%clk 0:02:39.2]} 23. Rdf1 {[%clk 0:01:54.9]}
23... Rxf6 {[%clk 0:02:38.5]} 24. Rxf6 {[%clk 0:01:55.4]} 24... Qe7 {[%clk
0:02:33]} 25. Qf2 {[%clk 0:01:40.1]} 25... Nd7 {[%clk 0:02:21.3]} 26. Rf7 {[%clk
0:01:31.5]} 26... Rf8 {[%clk 0:02:02.7]} 27. Rxf8+ {[%clk 0:01:26.8]} 27... Qxf8
{[%clk 0:02:01.8]} 28. Qxf8+ {[%clk 0:01:07.5]} 28... Nxf8 {[%clk 0:02:02.7]}
29. Ne2 {[%clk 0:01:05.5]} 29... Kd8 {[%clk 0:01:53.7]} 30. Nd4 {[%clk
0:01:04.3]} 30... Ke7 {[%clk 0:01:53.9]} 31. Bxa6 {[%clk 0:01:01.8]} 31... Nd7
{[%clk 0:01:50.2]} 32. Nxc6+ {[%clk 0:00:52.3]} 32... bxc6 {[%clk 0:01:51.1]}
33. Be2 {[%clk 0:00:48.8]} 33... Nxe5 {[%clk 0:01:52]} 34. a4 {[%clk 0:00:48.7]}
34... Kd6 {[%clk 0:01:51.3]} 35. b4 {[%clk 0:00:47.5]} 35... c5 {[%clk
0:01:49.1]} 36. c3 {[%clk 0:00:46.7]} 36... cxb4 {[%clk 0:01:37]} 37. cxb4
{[%clk 0:00:46.6]} 37... Nc6 {[%clk 0:01:37.6]} 38. b5 {[%clk 0:00:45.3]} 38...
Nd4 {[%clk 0:01:34.3]} 39. Bg4 {[%clk 0:00:37.4]} 39... Kc5 {[%clk 0:01:32.5]}
40. Kb2 {[%clk 0:00:37.7]} 40... e5 {[%clk 0:01:32.6]} 41. Kc3 {[%clk
0:00:32.5]} 41... Kb6 {[%clk 0:01:10.8]} 42. Bd7 {[%clk 0:00:23.9]} 42... Kc5
{[%clk 0:01:02.3]} 43. g3 {[%clk 0:00:22.9]} 43... e4 {[%clk 0:00:48]} 44. b6
{[%clk 0:00:20.1]} 44... Nc6 {[%clk 0:00:35.9]} 45. Bxc6 {[%clk 0:00:19.4]}
45... Kxc6 {[%clk 0:00:35.1]} 46. a5 {[%clk 0:00:19.8]} 46... e3 {[%clk
0:00:33.4]} 47. Kd3 {[%clk 0:00:19.8]} 47... d4 {[%clk 0:00:33.7]} 48. g4 {[%clk
0:00:19.9]} 48... Kb7 {[%clk 0:00:33.4]} 49. Ke2 {[%clk 0:00:19.9]} 49... Ka6
{[%clk 0:00:33.5]} 50. Kd3 {[%clk 0:00:19.9]} 50... Kb7 {[%clk 0:00:33]} 51. Ke2
{[%clk 0:00:20]} 51... Ka6 {[%clk 0:00:33.1]} 52. Kd3 {[%clk 0:00:19.9]} 52...
Kb7 {[%clk 0:00:33.3]} 1/2-1/2

[Event "*** SCC Grand Prix: Titled Tuesday Blitz"]
[Site "Chess.com"]
[Date "2020.10.13"]
[Round "5"]
[White "Zq1"]
[Black "tsvet2005"]
[Result "0-1"]
[WhiteElo "2508"]
[BlackElo "2704"]
[TimeControl "180+1"]
[EndTime "10:56:12 PDT"]
[Termination "tsvet2005 won by resignation"]

1. d4 {[%clk 0:03:00.9]} 1... d5 {[%clk 0:03:00]} 2. c4 {[%clk 0:03:00.6]} 2...
e6 {[%clk 0:02:59.6]} 3. Nc3 {[%clk 0:02:59.9]} 3... c6 {[%clk 0:03:00.1]} 4. e3
{[%clk 0:02:59.2]} 4... Nf6 {[%clk 0:03:00.2]} 5. Nf3 {[%clk 0:02:58.6]} 5...
Nbd7 {[%clk 0:03:00.4]} 6. Bd2 {[%clk 0:02:58.2]} 6... b6 {[%clk 0:02:50.9]} 7.
Bd3 {[%clk 0:02:56.8]} 7... Bd6 {[%clk 0:02:49.4]} 8. O-O {[%clk 0:02:55.5]}
8... O-O {[%clk 0:02:46.5]} 9. e4 {[%clk 0:02:54.4]} 9... dxc4 {[%clk
0:02:43.7]} 10. Bxc4 {[%clk 0:02:53.3]} 10... e5 {[%clk 0:02:44.3]} 11. Bg5
{[%clk 0:02:20.5]} 11... exd4 {[%clk 0:02:35.8]} 12. Nxd4 {[%clk 0:02:10]} 12...
Ne5 {[%clk 0:02:34.3]} 13. Be2 {[%clk 0:02:03.1]} 13... Bc5 {[%clk 0:01:58.1]}
14. Nb3 {[%clk 0:01:55.4]} 14... Be7 {[%clk 0:01:44.9]} 15. f4 {[%clk 0:01:51]}
15... Ng6 {[%clk 0:01:33.5]} 16. e5 {[%clk 0:01:44.8]} 16... Nd7 {[%clk
0:01:31.7]} 17. Bxe7 {[%clk 0:01:33.8]} 17... Qxe7 {[%clk 0:01:32.6]} 18. Ne4
{[%clk 0:01:31.7]} 18... Rd8 {[%clk 0:01:20.5]} 19. Qd6 {[%clk 0:01:27]} 19...
Qxd6 {[%clk 0:01:01.4]} 20. Nxd6 {[%clk 0:01:26.4]} 20... f6 {[%clk 0:00:57.9]}
21. e6 {[%clk 0:01:13.8]} 21... Ndf8 {[%clk 0:00:43]} 22. Nxc8 {[%clk
0:01:08.1]} 22... Raxc8 {[%clk 0:00:43.7]} 23. Bc4 {[%clk 0:00:47.6]} 23... Ne7
{[%clk 0:00:39.9]} 24. f5 {[%clk 0:00:43.5]} 24... b5 {[%clk 0:00:29.4]} 25. Be2
{[%clk 0:00:43]} 25... Rd5 {[%clk 0:00:28.6]} 26. g4 {[%clk 0:00:41.5]} 26... g6
{[%clk 0:00:28]} 27. Bf3 {[%clk 0:00:35.7]} 27... Re5 {[%clk 0:00:25.5]} 28.
Rae1 {[%clk 0:00:29.1]} 28... gxf5 {[%clk 0:00:21]} 29. Rxe5 {[%clk 0:00:26.1]}
29... fxe5 {[%clk 0:00:21.9]} 30. gxf5 {[%clk 0:00:25.7]} 30... Nxf5 {[%clk
0:00:22.3]} 31. Nc5 {[%clk 0:00:24.8]} 31... Ng6 {[%clk 0:00:19.6]} 32. Bg4
{[%clk 0:00:22.5]} 32... Nfe7 {[%clk 0:00:19.6]} 33. Rd1 {[%clk 0:00:21.4]}
33... Nd5 {[%clk 0:00:16.8]} 34. Kf2 {[%clk 0:00:11.6]} 34... Rf8+ {[%clk
0:00:12.4]} 35. Kg3 {[%clk 0:00:11.5]} 35... Nge7 {[%clk 0:00:10.9]} 36. a3
{[%clk 0:00:10.4]} 36... Kg7 {[%clk 0:00:10.5]} 37. Re1 {[%clk 0:00:10.4]} 37...
Ng6 {[%clk 0:00:09.9]} 38. Rd1 {[%clk 0:00:09.3]} 38... Ngf4 {[%clk 0:00:09.5]}
39. Re1 {[%clk 0:00:08.9]} 39... h5 {[%clk 0:00:09.3]} 40. Bd1 {[%clk
0:00:06.8]} 40... h4+ {[%clk 0:00:09.5]} 41. Kxh4 {[%clk 0:00:06]} 41... Ng2+
{[%clk 0:00:09.8]} 0-1

[Event "*** SCC Grand Prix: Titled Tuesday Blitz"]
[Site "Chess.com"]
[Date "2020.10.13"]
[Round "5"]
[White "gmpeter008"]
[Black "EddieMarsalla"]
[Result "1-0"]
[WhiteElo "2397"]
[BlackElo "2560"]
[TimeControl "180+1"]
[EndTime "10:56:12 PDT"]
[Termination "gmpeter008 won by resignation"]

1. d4 {[%clk 0:03:00.9]} 1... d5 {[%clk 0:02:55.8]} 2. Bf4 {[%clk 0:03:00.3]}
2... Bf5 {[%clk 0:02:56.2]} 3. Nf3 {[%clk 0:02:59.3]} 3... e6 {[%clk 0:02:56.6]}
4. c3 {[%clk 0:02:59.1]} 4... Bxb1 {[%clk 0:02:57.5]} 5. Rxb1 {[%clk 0:02:57.9]}
5... Bd6 {[%clk 0:02:58.4]} 6. Bg3 {[%clk 0:02:54.7]} 6... Nf6 {[%clk
0:02:57.6]} 7. e3 {[%clk 0:02:54.6]} 7... Bxg3 {[%clk 0:02:57.6]} 8. hxg3 {[%clk
0:02:54.5]} 8... c6 {[%clk 0:02:58.5]} 9. Bd3 {[%clk 0:02:54]} 9... Nbd7 {[%clk
0:02:58.9]} 10. Qc2 {[%clk 0:02:49.8]} 10... h6 {[%clk 0:02:59.2]} 11. e4 {[%clk
0:02:48.7]} 11... dxe4 {[%clk 0:02:58.6]} 12. Bxe4 {[%clk 0:02:49.6]} 12... Qc7
{[%clk 0:02:54]} 13. O-O {[%clk 0:02:43.1]} 13... O-O {[%clk 0:02:54.1]} 14.
Rfe1 {[%clk 0:02:41.7]} 14... Rfe8 {[%clk 0:02:54.3]} 15. Bd3 {[%clk 0:02:30.5]}
15... e5 {[%clk 0:02:54.2]} 16. Bc4 {[%clk 0:02:29.6]} 16... exd4 {[%clk
0:02:52.4]} 17. cxd4 {[%clk 0:02:11.1]} 17... Nb6 {[%clk 0:02:52.1]} 18. Bb3
{[%clk 0:02:09.7]} 18... Rad8 {[%clk 0:02:51]} 19. Ne5 {[%clk 0:02:06.2]} 19...
Nbd5 {[%clk 0:02:48.6]} 20. Rbd1 {[%clk 0:02:05.3]} 20... Re7 {[%clk 0:02:47.8]}
21. Qd2 {[%clk 0:02:02.4]} 21... Nb6 {[%clk 0:02:39]} 22. Qf4 {[%clk 0:01:55.8]}
22... Nfd5 {[%clk 0:02:39.1]} 23. Qf3 {[%clk 0:01:52.4]} 23... Rde8 {[%clk
0:02:33.6]} 24. Rc1 {[%clk 0:01:47.2]} 24... f6 {[%clk 0:02:22.5]} 25. Nd3
{[%clk 0:01:33.1]} 25... Rxe1+ {[%clk 0:02:21.8]} 26. Nxe1 {[%clk 0:01:33.6]}
26... Kh8 {[%clk 0:02:12.2]} 27. Nd3 {[%clk 0:01:27.5]} 27... Qe7 {[%clk
0:01:32.2]} 28. Qf5 {[%clk 0:01:17.9]} 28... Qe4 {[%clk 0:01:27.5]} 29. Qxe4
{[%clk 0:01:12.6]} 29... Rxe4 {[%clk 0:01:28.4]} 30. Nc5 {[%clk 0:01:12.2]}
30... Re7 {[%clk 0:01:24.8]} 31. Kf1 {[%clk 0:01:09.1]} 31... Nc8 {[%clk
0:00:15.2]} 32. Bxd5 {[%clk 0:00:56.8]} 32... cxd5 {[%clk 0:00:16.1]} 33. Nd3
{[%clk 0:00:45.4]} 33... Nb6 {[%clk 0:00:14.8]} 34. Re1 {[%clk 0:00:33.3]} 34...
Rxe1+ {[%clk 0:00:13.6]} 35. Kxe1 {[%clk 0:00:34.2]} 35... Nd7 {[%clk
0:00:13.4]} 36. Kd2 {[%clk 0:00:34]} 36... b6 {[%clk 0:00:13.1]} 37. Kc3 {[%clk
0:00:34.1]} 37... Kg8 {[%clk 0:00:13.4]} 38. Kb4 {[%clk 0:00:34.3]} 38... f5
{[%clk 0:00:12.6]} 39. Kb5 {[%clk 0:00:33.7]} 39... Nf6 {[%clk 0:00:11.1]} 40.
Ka6 {[%clk 0:00:33.8]} 40... Kf7 {[%clk 0:00:08.7]} 41. Kxa7 {[%clk 0:00:34]}
41... Nd7 {[%clk 0:00:09.6]} 42. Kb7 {[%clk 0:00:33.1]} 42... Ke7 {[%clk
0:00:10.5]} 43. Kc6 {[%clk 0:00:33.3]} 43... Nf6 {[%clk 0:00:09.5]} 44. Kxb6
{[%clk 0:00:32.9]} 44... g5 {[%clk 0:00:09.6]} 45. a4 {[%clk 0:00:32.9]} 45...
Kd6 {[%clk 0:00:09.9]} 46. a5 {[%clk 0:00:32.6]} 46... Nd7+ {[%clk 0:00:10.2]}
47. Kb7 {[%clk 0:00:32.7]} 47... Nf6 {[%clk 0:00:10.6]} 48. a6 {[%clk
0:00:32.9]} 1-0

[Event "*** SCC Grand Prix: Titled Tuesday Blitz"]
[Site "Chess.com"]
[Date "2020.10.13"]
[Round "5"]
[White "QuintilianoR"]
[Black "tptagain"]
[Result "0-1"]
[WhiteElo "2628"]
[BlackElo "2863"]
[TimeControl "180+1"]
[EndTime "10:56:13 PDT"]
[Termination "tptagain won by resignation"]

1. d4 {[%clk 0:03:00.9]} 1... e6 {[%clk 0:02:59.2]} 2. c4 {[%clk 0:03:00.5]}
2... d5 {[%clk 0:02:58.6]} 3. Nc3 {[%clk 0:02:59.1]} 3... c6 {[%clk 0:02:58.7]}
4. e3 {[%clk 0:02:58.1]} 4... Bd6 {[%clk 0:02:55.3]} 5. b3 {[%clk 0:02:49.7]}
5... f5 {[%clk 0:02:49.3]} 6. Bd3 {[%clk 0:02:47.3]} 6... Nh6 {[%clk 0:02:48.7]}
7. Nge2 {[%clk 0:02:46.1]} 7... O-O {[%clk 0:02:47.2]} 8. Qc2 {[%clk 0:02:44.7]}
8... Nd7 {[%clk 0:02:43.6]} 9. Bb2 {[%clk 0:02:42.8]} 9... a6 {[%clk 0:02:40.6]}
10. f3 {[%clk 0:02:38.9]} 10... b5 {[%clk 0:02:40]} 11. O-O-O {[%clk 0:02:26.6]}
11... bxc4 {[%clk 0:02:27]} 12. bxc4 {[%clk 0:02:24.1]} 12... a5 {[%clk
0:02:23.2]} 13. Nf4 {[%clk 0:01:44]} 13... Nf6 {[%clk 0:02:04.5]} 14. Kb1 {[%clk
0:01:33.1]} 14... a4 {[%clk 0:01:59.7]} 15. c5 {[%clk 0:01:15.1]} 15... a3
{[%clk 0:01:44.8]} 16. cxd6 {[%clk 0:01:01.4]} 16... axb2 {[%clk 0:01:40.1]} 17.
e4 {[%clk 0:01:00.3]} 17... fxe4 {[%clk 0:01:34.5]} 18. fxe4 {[%clk 0:01:01.2]}
18... dxe4 {[%clk 0:01:30.2]} 19. Bxe4 {[%clk 0:00:54.8]} 19... Nxe4 {[%clk
0:01:28.1]} 20. Qxe4 {[%clk 0:00:53.3]} 20... Qxd6 {[%clk 0:00:52.2]} 21. Rhf1
{[%clk 0:00:50.5]} 21... e5 {[%clk 0:00:46.9]} 22. dxe5 {[%clk 0:00:19.3]} 22...
Qxd1+ {[%clk 0:00:46.6]} 23. Rxd1 {[%clk 0:00:20.2]} 23... Bf5 {[%clk
0:00:46.8]} 24. g3 {[%clk 0:00:18.5]} 24... Rae8 {[%clk 0:00:38.8]} 25. Nd3
{[%clk 0:00:18.1]} 25... Bxe4 {[%clk 0:00:37.1]} 26. Nxe4 {[%clk 0:00:19]} 26...
Ng4 {[%clk 0:00:36.9]} 27. Nd6 {[%clk 0:00:17.9]} 27... Re7 {[%clk 0:00:34.2]}
28. Nc4 {[%clk 0:00:17.6]} 28... h5 {[%clk 0:00:31.5]} 29. Kxb2 {[%clk
0:00:17.6]} 29... Nf2 {[%clk 0:00:31.8]} 30. Nxf2 {[%clk 0:00:16.7]} 30... Rxf2+
{[%clk 0:00:32.7]} 31. Kb3 {[%clk 0:00:17.6]} 31... Rxh2 {[%clk 0:00:33]} 32.
Rd6 {[%clk 0:00:18.2]} 32... Rh3 {[%clk 0:00:30.9]} 33. a4 {[%clk 0:00:18.3]}
33... Rxg3+ {[%clk 0:00:30.5]} 34. Kb4 {[%clk 0:00:19.2]} 34... h4 {[%clk
0:00:30.9]} 35. Rd2 {[%clk 0:00:19.3]} 35... h3 {[%clk 0:00:30.6]} 36. Rh2
{[%clk 0:00:19.7]} 36... g5 {[%clk 0:00:30.8]} 37. Kc5 {[%clk 0:00:20]} 37... g4
{[%clk 0:00:31]} 38. Kd6 {[%clk 0:00:20.3]} 38... Ra7 {[%clk 0:00:28.9]} 39. e6
{[%clk 0:00:19.7]} 39... Rg2 {[%clk 0:00:28.2]} 40. Rh1 {[%clk 0:00:20.2]} 40...
Re2 {[%clk 0:00:26.3]} 41. Ne5 {[%clk 0:00:19.1]} 41... Rxa4 {[%clk 0:00:17.9]}
42. e7 {[%clk 0:00:17.4]} 42... Rxe5 {[%clk 0:00:18]} 43. Kxe5 {[%clk
0:00:17.2]} 43... Kf7 {[%clk 0:00:18.7]} 44. Kd6 {[%clk 0:00:16.1]} 44... Rd4+
{[%clk 0:00:18.9]} 45. Kc5 {[%clk 0:00:16]} 45... Rd2 {[%clk 0:00:18.3]} 46. Re1
{[%clk 0:00:15.1]} 46... Ke8 {[%clk 0:00:18.6]} 47. Kxc6 {[%clk 0:00:16]} 47...
h2 {[%clk 0:00:18.6]} 0-1

[Event "*** SCC Grand Prix: Titled Tuesday Blitz"]
[Site "Chess.com"]
[Date "2020.10.13"]
[Round "5"]
[White "crescentmoon2411"]
[Black "biostatistician"]
[Result "1-0"]
[WhiteElo "2803"]
[BlackElo "2563"]
[TimeControl "180+1"]
[EndTime "10:56:14 PDT"]
[Termination "crescentmoon2411 won on time"]

1. e4 {[%clk 0:03:00.9]} 1... e6 {[%clk 0:02:59.3]} 2. d4 {[%clk 0:03:00.8]}
2... d5 {[%clk 0:03:00.2]} 3. Nc3 {[%clk 0:03:00.6]} 3... Nc6 {[%clk 0:02:58.3]}
4. Nf3 {[%clk 0:02:57.5]} 4... Nf6 {[%clk 0:02:58.1]} 5. e5 {[%clk 0:02:49.2]}
5... Ne4 {[%clk 0:02:57.8]} 6. Bd3 {[%clk 0:02:44.9]} 6... Bb4 {[%clk
0:02:58.1]} 7. Bd2 {[%clk 0:02:36.8]} 7... Nxd2 {[%clk 0:02:57.7]} 8. Qxd2
{[%clk 0:02:36]} 8... Be7 {[%clk 0:02:58.4]} 9. O-O {[%clk 0:02:30.1]} 9... Nb4
{[%clk 0:02:58.8]} 10. Be2 {[%clk 0:02:28.7]} 10... c5 {[%clk 0:02:58.5]} 11.
dxc5 {[%clk 0:02:17.2]} 11... Bxc5 {[%clk 0:02:59.4]} 12. Nb5 {[%clk 0:02:17.3]}
12... O-O {[%clk 0:02:54.5]} 13. Nbd4 {[%clk 0:02:03.3]} 13... Bd7 {[%clk
0:02:51.5]} 14. c3 {[%clk 0:01:46.7]} 14... Nc6 {[%clk 0:02:51]} 15. Nb3 {[%clk
0:01:42.4]} 15... Bb6 {[%clk 0:02:46.9]} 16. Bd3 {[%clk 0:01:37.4]} 16... Na5
{[%clk 0:02:30.4]} 17. Rae1 {[%clk 0:01:31.2]} 17... Rc8 {[%clk 0:02:25.8]} 18.
Nbd4 {[%clk 0:01:25.7]} 18... Nc4 {[%clk 0:02:23.9]} 19. Qf4 {[%clk 0:01:11.4]}
19... h6 {[%clk 0:02:20.7]} 20. Re2 {[%clk 0:01:05.6]} 20... a6 {[%clk
0:01:43.1]} 21. h4 {[%clk 0:01:03.3]} 21... f6 {[%clk 0:00:53]} 22. exf6 {[%clk
0:00:48.2]} 22... Qxf6 {[%clk 0:00:53.9]} 23. Qxf6 {[%clk 0:00:47.6]} 23... Rxf6
{[%clk 0:00:53.7]} 24. Bxc4 {[%clk 0:00:45.9]} 24... dxc4 {[%clk 0:00:52.6]} 25.
Rfe1 {[%clk 0:00:45.3]} 25... Re8 {[%clk 0:00:49.1]} 26. Ne5 {[%clk 0:00:43.5]}
26... Bb5 {[%clk 0:00:46.2]} 27. Ng4 {[%clk 0:00:32.5]} 27... Rf4 {[%clk
0:00:39.2]} 28. Nxb5 {[%clk 0:00:22.1]} 28... axb5 {[%clk 0:00:31]} 29. Rxe6
{[%clk 0:00:21.5]} 29... Rxe6 {[%clk 0:00:22.7]} 30. Rxe6 {[%clk 0:00:22.4]}
30... Bc5 {[%clk 0:00:18.9]} 31. Ne3 {[%clk 0:00:19.4]} 31... Rxh4 {[%clk
0:00:18.2]} 32. Re5 {[%clk 0:00:17.1]} 32... Bxe3 {[%clk 0:00:15.4]} 33. fxe3
{[%clk 0:00:18]} 33... Kh7 {[%clk 0:00:02.9]} 34. Rxb5 {[%clk 0:00:17.8]} 34...
Re4 {[%clk 0:00:03.4]} 35. Rxb7 {[%clk 0:00:16.3]} 35... Rxe3 {[%clk 0:00:03.4]}
36. a4 {[%clk 0:00:15.2]} 1-0

[Event "*** SCC Grand Prix: Titled Tuesday Blitz"]
[Site "Chess.com"]
[Date "2020.10.13"]
[Round "5"]
[White "Witik"]
[Black "Balla_Tamas"]
[Result "1-0"]
[WhiteElo "2738"]
[BlackElo "2455"]
[TimeControl "180+1"]
[EndTime "10:56:18 PDT"]
[Termination "Witik won by resignation"]

1. e4 {[%clk 0:03:00.9]} 1... g6 {[%clk 0:02:58.9]} 2. d4 {[%clk 0:03:00.2]}
2... Bg7 {[%clk 0:02:59.5]} 3. Nc3 {[%clk 0:03:00.4]} 3... c6 {[%clk 0:02:59.2]}
4. Bc4 {[%clk 0:02:59.3]} 4... d5 {[%clk 0:02:46.9]} 5. exd5 {[%clk 0:02:59.3]}
5... b5 {[%clk 0:02:47.4]} 6. Be2 {[%clk 0:02:59.9]} 6... b4 {[%clk 0:02:47.4]}
7. Na4 {[%clk 0:03:00.4]} 7... cxd5 {[%clk 0:02:45.8]} 8. Nf3 {[%clk 0:03:00.3]}
8... Nc6 {[%clk 0:02:42.8]} 9. O-O {[%clk 0:02:58.8]} 9... e6 {[%clk 0:02:34.2]}
10. a3 {[%clk 0:02:57.7]} 10... a5 {[%clk 0:02:31]} 11. Bb5 {[%clk 0:02:41.9]}
11... Bd7 {[%clk 0:02:30.5]} 12. Nc5 {[%clk 0:02:39.5]} 12... Rb8 {[%clk
0:02:20]} 13. a4 {[%clk 0:02:31.4]} 13... Nge7 {[%clk 0:02:18.9]} 14. Bf4 {[%clk
0:02:30.9]} 14... Rb6 {[%clk 0:02:16.9]} 15. Ne5 {[%clk 0:01:23]} 15... Nxe5
{[%clk 0:01:43.5]} 16. Bxe5 {[%clk 0:01:22.4]} 16... Bxb5 {[%clk 0:01:43.4]} 17.
Bxg7 {[%clk 0:01:21.1]} 17... Bxf1 {[%clk 0:01:39.6]} 18. Bxh8 {[%clk
0:01:19.2]} 18... Ba6 {[%clk 0:01:36.8]} 19. Bf6 {[%clk 0:01:10.1]} 19... Qc8
{[%clk 0:01:29.4]} 20. Qd2 {[%clk 0:01:01.2]} 20... Ng8 {[%clk 0:01:27.9]} 21.
Bh4 {[%clk 0:00:50.9]} 21... f6 {[%clk 0:01:21.8]} 22. Re1 {[%clk 0:00:50.3]}
22... Kf7 {[%clk 0:01:21.4]} 23. Qf4 {[%clk 0:00:45.6]} 23... Kg7 {[%clk
0:01:15.3]} 24. h3 {[%clk 0:00:28.6]} 24... Rc6 {[%clk 0:01:08.9]} 25. Re3
{[%clk 0:00:20.7]} 25... h6 {[%clk 0:00:49.4]} 26. Bxf6+ {[%clk 0:00:16.9]}
26... Nxf6 {[%clk 0:00:47.9]} 27. Qe5 {[%clk 0:00:17.5]} 27... Rxc5 {[%clk
0:00:35.6]} 28. dxc5 {[%clk 0:00:17.3]} 28... Qxc5 {[%clk 0:00:35.6]} 29. Qxe6
{[%clk 0:00:17.5]} 29... Bb7 {[%clk 0:00:30.4]} 30. Qe7+ {[%clk 0:00:16.7]}
30... Qxe7 {[%clk 0:00:28.2]} 31. Rxe7+ {[%clk 0:00:17.6]} 31... Kf8 {[%clk
0:00:28.8]} 32. Rxb7 {[%clk 0:00:18.2]} 32... Ne4 {[%clk 0:00:29.7]} 33. Rb5
{[%clk 0:00:17.3]} 33... d4 {[%clk 0:00:27]} 34. Rxa5 {[%clk 0:00:16.2]} 34...
b3 {[%clk 0:00:25.4]} 35. cxb3 {[%clk 0:00:15.6]} 35... d3 {[%clk 0:00:25.5]}
36. Rd5 {[%clk 0:00:15.8]} 36... d2 {[%clk 0:00:26.4]} 37. Kf1 {[%clk
0:00:15.4]} 37... Nc5 {[%clk 0:00:25.9]} 38. Rxd2 {[%clk 0:00:14.7]} 38... Nxb3
{[%clk 0:00:26.8]} 39. Rd5 {[%clk 0:00:14.1]} 39... Ke7 {[%clk 0:00:26.1]} 40.
a5 {[%clk 0:00:11.5]} 40... Ke6 {[%clk 0:00:24.9]} 41. a6 {[%clk 0:00:04.9]}
41... Kxd5 {[%clk 0:00:25]} 42. a7 {[%clk 0:00:05.3]} 42... Nd2+ {[%clk
0:00:25.9]} 43. Ke2 {[%clk 0:00:05.6]} 43... Nc4 {[%clk 0:00:25.5]} 44. a8=Q+
{[%clk 0:00:06]} 44... Ke6 {[%clk 0:00:25.2]} 45. Qg8+ {[%clk 0:00:05.7]} 45...
Kf6 {[%clk 0:00:24.8]} 46. Qxc4 {[%clk 0:00:06.6]} 46... Ke7 {[%clk 0:00:25.6]}
47. b4 {[%clk 0:00:06.8]} 47... Kd6 {[%clk 0:00:26.5]} 48. b5 {[%clk 0:00:07.4]}
48... Kd7 {[%clk 0:00:27.3]} 49. b6 {[%clk 0:00:08.3]} 1-0

[Event "*** SCC Grand Prix: Titled Tuesday Blitz"]
[Site "Chess.com"]
[Date "2020.10.13"]
[Round "5"]
[White "Ajedrez_con_German"]
[Black "vanea_03"]
[Result "0-1"]
[WhiteElo "2492"]
[BlackElo "2696"]
[TimeControl "180+1"]
[EndTime "10:56:22 PDT"]
[Termination "vanea_03 won on time"]

1. d4 {[%clk 0:03:00.9]} 1... f5 {[%clk 0:02:59.4]} 2. g3 {[%clk 0:02:53.3]}
2... Nf6 {[%clk 0:02:58.8]} 3. Bg2 {[%clk 0:02:52.5]} 3... e6 {[%clk 0:02:59.1]}
4. Nf3 {[%clk 0:02:41.5]} 4... d5 {[%clk 0:02:58.6]} 5. O-O {[%clk 0:02:40.8]}
5... Bd6 {[%clk 0:02:57]} 6. b3 {[%clk 0:02:19]} 6... Qe7 {[%clk 0:02:53.5]} 7.
c4 {[%clk 0:02:11.6]} 7... c6 {[%clk 0:02:53.1]} 8. Bb2 {[%clk 0:01:58.5]} 8...
O-O {[%clk 0:02:52.4]} 9. Qc1 {[%clk 0:01:58.3]} 9... b5 {[%clk 0:02:49.4]} 10.
Nbd2 {[%clk 0:01:45.3]} 10... bxc4 {[%clk 0:02:47.1]} 11. bxc4 {[%clk
0:01:45.3]} 11... Ba6 {[%clk 0:02:47.4]} 12. Qc2 {[%clk 0:01:37.7]} 12... Rc8
{[%clk 0:02:38.2]} 13. Ne5 {[%clk 0:01:32.7]} 13... Ne4 {[%clk 0:02:09.5]} 14.
Ndf3 {[%clk 0:01:19.2]} 14... Bxe5 {[%clk 0:01:57.4]} 15. Nxe5 {[%clk
0:01:17.7]} 15... Nd7 {[%clk 0:01:57.3]} 16. Nxd7 {[%clk 0:01:15.7]} 16... Qxd7
{[%clk 0:01:55.3]} 17. c5 {[%clk 0:01:06.7]} 17... Bc4 {[%clk 0:01:40.7]} 18.
Bc1 {[%clk 0:01:02.3]} 18... e5 {[%clk 0:00:54.5]} 19. dxe5 {[%clk 0:00:46.4]}
19... Nxc5 {[%clk 0:00:53.9]} 20. Ba3 {[%clk 0:00:41.3]} 20... Ne4 {[%clk
0:00:45.8]} 21. Rfd1 {[%clk 0:00:30]} 21... Qe6 {[%clk 0:00:43.7]} 22. f3 {[%clk
0:00:28.8]} 22... Ng5 {[%clk 0:00:43.4]} 23. h4 {[%clk 0:00:19.9]} 23... Nf7
{[%clk 0:00:40.7]} 24. f4 {[%clk 0:00:20.3]} 24... Rab8 {[%clk 0:00:24.8]} 25.
Rab1 {[%clk 0:00:20.4]} 25... a6 {[%clk 0:00:19.9]} 26. Rxb8 {[%clk 0:00:20.4]}
26... Rxb8 {[%clk 0:00:20.8]} 27. e3 {[%clk 0:00:19.5]} 27... Rb5 {[%clk
0:00:17.5]} 28. Rb1 {[%clk 0:00:18.4]} 28... Qg6 {[%clk 0:00:12.2]} 29. Rxb5
{[%clk 0:00:17]} 29... axb5 {[%clk 0:00:12.6]} 30. Kf2 {[%clk 0:00:16.3]} 30...
Nh6 {[%clk 0:00:11]} 31. Bf3 {[%clk 0:00:16.3]} 31... Ng4+ {[%clk 0:00:10.3]}
32. Bxg4 {[%clk 0:00:15]} 32... Qxg4 {[%clk 0:00:11.2]} 33. Kg2 {[%clk
0:00:07.2]} 33... Be2 {[%clk 0:00:07.1]} 34. Kf2 {[%clk 0:00:03.7]} 34... Qf3+
{[%clk 0:00:06.9]} 35. Ke1 {[%clk 0:00:04.2]} 35... Bc4 {[%clk 0:00:03.3]} 36.
Qf2 {[%clk 0:00:03.9]} 36... Qe4 {[%clk 0:00:03.4]} 37. Qd2 {[%clk 0:00:01.7]}
37... Kf7 {[%clk 0:00:03.9]} 38. Bd6 {[%clk 0:00:01]} 38... Ke6 {[%clk
0:00:03.3]} 39. Bb4 {[%clk 0:00:01.2]} 39... Qh1+ {[%clk 0:00:03.6]} 0-1